fUST/lending_fUST_20260428
["ID","MTS","AMOUNT","RATE_DAILY","PERIOD"]
[421275232,1777323042276,-611.52,0.00019178,2]
[421275233,1777323042286,-500.0,0.00019178,2]
[421275234,1777323042296,-504.72871593,0.00019178,2]
[421275235,1777323042306,-10558.17,0.00019178,2]
[421275236,1777323042316,-1223.66,0.00019178,2]
[421275237,1777323042326,-8572.79,0.00019178,2]
[421275238,1777323042336,-2607.07,0.00019178,2]
[421275239,1777323042347,-51143.97,0.00019178,2]
[421275240,1777323042357,-500.0,0.00019178,2]
[421275241,1777323042367,-2157.97,0.00019178,2]
[421275242,1777323042377,-3114.69,0.00019178,2]
[421275243,1777323042387,-1121.67,0.00019178,2]
[421275244,1777323042397,-500.0,0.00019178,2]
[421275245,1777323042407,-500.0,0.00019178,2]
[421275246,1777323042417,-500.0,0.00019178,2]
[421275247,1777323042427,-5622.65,0.00019178,2]
[421275248,1777323042437,-500.0,0.00019178,2]
[421275249,1777323042447,-632.56,0.00019178,2]
[421275250,1777323042457,-500.0,0.00019178,2]
[421275251,1777323042467,-12072.52,0.00019178,2]
[421275252,1777323042478,-1711.53,0.00019178,2]
[421275253,1777323042489,-500.0,0.00019178,2]
[421275254,1777323042499,-500.0,0.00019178,2]
[421275255,1777323042509,-1861.82,0.00019178,2]
[421275256,1777323042519,-500.0,0.00019178,2]
[421275257,1777323042528,-17807.79,0.00019178,2]
[421275258,1777323042538,-779.02,0.00019178,2]
[421275259,1777323042549,-500.0,0.00019178,2]
[421275260,1777323042559,-1769.33,0.00019178,2]
[421275261,1777323042569,-1755.19,0.00019178,2]
[421275262,1777323042579,-14545.33,0.00019178,2]
[421275263,1777323042590,-4651.36,0.00019178,2]
[421275264,1777323042600,-500.0,0.00019178,2]
[421275265,1777323042610,-500.0,0.00019178,2]
[421275266,1777323042620,-2799.88,0.00019178,2]
[421275267,1777323042630,-500.0,0.00019178,2]
[421275268,1777323042640,-500.0,0.00019178,2]
[421275269,1777323042650,-9158.77,0.00019178,2]
[421275270,1777323042659,-1841.69,0.00019178,2]
[421275271,1777323042670,-563.55,0.00019178,2]
[421275272,1777323042679,-500.0,0.00019178,2]
[421275273,1777323042690,-871.16,0.00019178,2]
[421275274,1777323042700,-500.0,0.00019178,2]
[421275275,1777323042710,-1096.64,0.00019178,2]
[421275276,1777323042721,-500.0,0.00019178,2]
[421275277,1777323042731,-484.92059365,0.00019178,2]
[421275278,1777323042741,-1061.98,0.00019178,2]
[421275279,1777323042751,-500.0,0.00019178,2]
[421275280,1777323042762,-500.0,0.00019178,2]
[421275281,1777323042771,-3068.05,0.00019178,2]
[421275282,1777323042781,-500.0,0.00019178,2]
[421275283,1777323042791,-1357.53,0.00019178,2]
[421275284,1777323042801,-2515.77,0.00019178,2]
[421275285,1777323042812,-759.67,0.00019178,2]
[421275286,1777323042822,-4110.36,0.00019178,2]
[421275287,1777323042831,-1124.76,0.00019178,2]
[421275288,1777323042841,-1130.27,0.00019178,2]
[421275289,1777323042851,-583.69,0.00019178,2]
[421275290,1777323042861,-6198.64,0.00019178,2]
[421275291,1777323042871,-500.0,0.00019178,2]
[421275292,1777323042881,-611.51,0.00019178,2]
[421275293,1777323042890,-500.0,0.00019178,2]
[421275294,1777323042900,-295.14166612,0.00019178,2]
[421275295,1777323042910,-500.0,0.00019178,2]
[421275296,1777323042920,-2969.6,0.00019178,2]
[421275297,1777323042929,-512.24,0.00019178,2]
[421275298,1777323042939,-3167.4,0.00019178,2]
[421275299,1777323042950,-500.0,0.00019178,2]
[421275300,1777323042959,-626.16317424,0.00019178,2]
[421275301,1777323042969,-902.49,0.00019178,2]
[421275302,1777323042979,-195.54781213,0.00019178,2]
[421275303,1777323042990,-511.99,0.00019178,2]
[421275304,1777323043001,-500.0,0.00019178,2]
[421275305,1777323043011,-500.0,0.00019178,2]
[421275306,1777323043021,-225.37532834,0.00019178,2]
[421275307,1777323043032,-500.0,0.00019178,2]
[421275308,1777323043042,-604.61,0.00019178,2]
[421275309,1777323043052,-500.0,0.00019178,2]
[421275310,1777323043062,-500.0,0.00019178,2]
[421275311,1777323043073,-1575.8,0.00019178,2]
[421275312,1777323043083,-500.0,0.00019178,2]
[421275313,1777323043093,-500.0,0.00019178,2]
[421275314,1777323043103,-7914.43,0.00019178,2]
[421275315,1777323043112,-500.0,0.00019178,2]
[421275316,1777323043122,-5162.05,0.00019178,2]
[421275317,1777323043132,-500.0,0.00019178,2]
[421275318,1777323043142,-3500.07,0.00019178,2]
[421275319,1777323043151,-500.0,0.00019178,2]
[421275320,1777323043161,-500.0,0.00019178,2]
[421275321,1777323043171,-500.0,0.00019178,2]
[421275322,1777323043180,-4701.42,0.00019178,2]
[421275323,1777323043190,-558.39,0.00019178,2]
[421275324,1777323043201,-5256.95,0.00019178,2]
[421275325,1777323043210,-4148.41,0.00019178,2]
[421275326,1777323043221,-1474.01,0.00019178,2]
[421275328,1777323043231,-1492.38,0.00019178,2]
[421275330,1777323043240,-500.0,0.00019178,2]
[421275332,1777323043250,-500.0,0.00019178,2]
[421275333,1777323043259,-838.03,0.00019178,2]
[421275334,1777323043269,-643.05,0.00019178,2]
[421275335,1777323043279,-500.0,0.00019178,2]
[421275337,1777323043289,-500.0,0.00019178,2]
[421275338,1777323043298,-717.61,0.00019178,2]
[421275340,1777323043308,-551.66,0.00019178,2]
[421275342,1777323043318,-500.0,0.00019178,2]
[421275343,1777323043328,-500.0,0.00019178,2]
[421275344,1777323043338,-1779.94,0.00019178,2]
[421275346,1777323043348,-2395.33,0.00019178,2]
[421275347,1777323043358,-1899.77,0.00019178,2]
[421275348,1777323043368,-1653.11,0.00019178,2]
[421275349,1777323043378,-500.0,0.00019178,2]
[421275350,1777323043388,-500.0,0.00019178,2]
[421275351,1777323043398,-4645.41,0.00019178,2]
[421275352,1777323043408,-500.0,0.00019178,2]
[421275353,1777323043418,-500.0,0.00019178,2]
[421275354,1777323043427,-1207.47,0.00019178,2]
[421275355,1777323043437,-500.0,0.00019178,2]
[421275356,1777323043447,-5333.58,0.00019178,2]
[421275357,1777323043457,-768.38,0.00019178,2]
[421275358,1777323043466,-500.0,0.00019178,2]
[421275359,1777323043476,-500.0,0.00019178,2]
[421275360,1777323043486,-890.44,0.00019178,2]
[421275361,1777323043495,-500.0,0.00019178,2]
[421275362,1777323043505,-500.0,0.00019178,2]
[421275363,1777323043515,-500.0,0.00019178,2]
[421275364,1777323043524,-3771.26,0.00019178,2]
[421275365,1777323043534,-500.0,0.00019178,2]
[421275366,1777323043544,-1024.48,0.00019178,2]
[421275367,1777323043554,-673.63,0.00019178,2]
[421275368,1777323043564,-500.0,0.00019178,2]
[421275369,1777323043574,-556.09,0.00019178,2]
[421275370,1777323043584,-500.0,0.00019178,2]
[421275371,1777323043594,-500.0,0.00019178,2]
[421275372,1777323043604,-501.66621885,0.00019178,2]
[421275373,1777323043614,-500.0,0.00019178,2]
[421275374,1777323043623,-546.06227585,0.00019178,2]
[421275375,1777323043633,-833.54,0.00019178,2]
[421275376,1777323043643,-500.0,0.00019178,2]
[421275377,1777323043653,-500.0,0.00019178,2]
[421275378,1777323043663,-500.0,0.00019178,2]
[421275379,1777323043674,-500.0,0.00019178,2]
[421275380,1777323043684,-500.0,0.00019178,2]
[421275381,1777323043694,-500.0,0.00019178,2]
[421275383,1777323043704,-500.0,0.00019178,2]
[421275384,1777323043714,-500.62785914,0.00019178,2]
[421275385,1777323043724,-500.0,0.00019178,2]
[421275386,1777323043734,-500.0,0.00019178,2]
[421275387,1777323043744,-500.0,0.00019178,2]
[421275388,1777323043753,-500.0,0.00019178,2]
[421275389,1777323043763,-500.0,0.00019178,2]
[421275390,1777323043773,-500.0,0.00019178,2]
[421275391,1777323043782,-632.22684052,0.00019178,2]
[421275392,1777323043792,-500.0,0.00019178,2]
[421275393,1777323043802,-500.0,0.00019178,2]
[421275394,1777323043812,-347.6435,0.00019178,2]
[421275395,1777323043982,-581.66,0.00019178,2]
[421275396,1777323043991,-500.0,0.00019178,2]
[421275397,1777323044001,-500.0,0.00019178,2]
[421275398,1777323044011,-500.0,0.00019178,2]
[421275399,1777323044021,-500.0,0.00019178,2]
[421275400,1777323044031,-500.0,0.00019178,2]
[421275401,1777323044041,-500.0,0.00019178,2]
[421275402,1777323044051,-151.0,0.00019178,2]
[421275403,1777323044060,-500.0,0.00019178,2]
[421275404,1777323044070,-500.0,0.00019178,2]
[421275405,1777323044080,-500.0,0.00019178,2]
[421275406,1777323044089,-500.65253868,0.00019178,2]
[421275407,1777323044099,-500.0,0.00019178,2]
[421275408,1777323044109,-358.36684944,0.00019178,2]
[421275409,1777323044119,-500.0,0.00019178,2]
[421275410,1777323044128,-680.12,0.00019178,2]
[421275411,1777323044138,-681.08,0.00019178,2]
[421275412,1777323044148,-500.0,0.00019178,2]
[421275413,1777323044158,-692.46,0.00019178,2]
[421275414,1777323044167,-500.0,0.00019178,2]
[421275415,1777323044177,-500.0,0.00019178,2]
[421275416,1777323044187,-471.04817904,0.00019178,2]
[421275417,1777323044196,-229.83498493,0.00019178,2]
[421275418,1777323044206,-500.0,0.00019178,2]
[421275419,1777323044216,-500.0,0.00019178,2]
[421275420,1777323044226,-500.0,0.00019178,2]
[421275421,1777323044235,-500.0,0.00019178,2]
[421275422,1777323044245,-696.8,0.00019178,2]
[421275423,1777323044254,-500.0,0.00019178,2]
[421275424,1777323044264,-500.0,0.00019178,2]
[421275425,1777323044274,-507.99,0.00019178,2]
[421275426,1777323044283,-500.0,0.00019178,2]
[421275427,1777323044293,-331.44988711,0.00019178,2]
[421275428,1777323044302,-500.0,0.00019178,2]
[421275429,1777323044312,-500.0,0.00019178,2]
[421275430,1777323044322,-500.0,0.00019178,2]
[421275431,1777323044332,-300.0,0.00019178,2]
[421275432,1777323044342,-500.0,0.00019178,2]
[421275433,1777323044352,-500.0,0.00019178,2]
[421275434,1777323044362,-500.0,0.00019178,2]
[421275435,1777323044373,-500.0,0.00019178,2]
[421275436,1777323044383,-500.0,0.00019178,2]
[421275437,1777323044393,-543.59,0.00019178,2]
[421275438,1777323044403,-500.0,0.00019178,2]
[421275439,1777323044412,-500.0,0.00019178,2]
[421275440,1777323044422,-500.0,0.00019178,2]
[421275441,1777323044432,-500.86859479,0.00019178,2]
[421275442,1777323044442,-500.0,0.00019178,2]
[421275443,1777323044451,-500.0,0.00019178,2]
[421275444,1777323044461,-500.0,0.00019178,2]
[421275445,1777323044471,-500.0,0.00019178,2]
[421275446,1777323044481,-500.0,0.00019178,2]
[421275447,1777323044491,-500.0,0.00019178,2]
[421275448,1777323044501,-500.0,0.00019178,2]
[421275449,1777323044511,-500.0,0.00019178,2]
[421275450,1777323044521,-500.0,0.00019178,2]
[421275451,1777323044530,-500.0,0.00019178,2]
[421275452,1777323044540,-500.0,0.00019178,2]
[421275453,1777323044550,-500.0,0.00019178,2]
[421275454,1777323044559,-500.0,0.00019178,2]
[421275455,1777323044569,-500.0,0.00019178,2]
[421275456,1777323044579,-500.0,0.00019178,2]
[421275457,1777323044588,-500.0,0.00019178,2]
[421275458,1777323044598,-500.0,0.00019178,2]
[421275459,1777323044607,-500.0,0.00019178,2]
[421275460,1777323044617,-500.0,0.00019178,2]
[421275461,1777323044626,-500.0,0.00019178,2]
[421275462,1777323044637,-500.0,0.00019178,2]
[421275463,1777323044647,-500.0,0.00019178,2]
[421275464,1777323044656,-563.67803322,0.00019178,2]
[421275465,1777323044666,-500.0,0.00019178,2]
[421275466,1777323044675,-552.07643123,0.00019178,2]
[421275467,1777323044686,-500.0,0.00019178,2]
[421275468,1777323044695,-500.0,0.00019178,2]
[421275469,1777323044705,-500.0,0.00019178,2]
[421275470,1777323044715,-500.0,0.00019178,2]
[421275471,1777323044725,-500.0,0.00019178,2]
[421275472,1777323044735,-599.86,0.00019178,2]
[421275473,1777323044745,-500.0,0.00019178,2]
[421275474,1777323044755,-500.0,0.00019178,2]
[421275475,1777323044764,-500.0,0.00019178,2]
[421275476,1777323044775,-518.1291499,0.00019178,2]
[421275477,1777323044789,-425.06834818,0.00019178,2]
[421275478,1777323044799,-500.0,0.00019178,2]
[421275479,1777323044808,-500.0,0.00019178,2]
[421275480,1777323044819,-500.0,0.00019178,2]
[421275481,1777323044829,-500.0,0.00019178,2]
[421275482,1777323044839,-500.0,0.00019178,2]
[421275483,1777323044849,-500.0,0.00019178,2]
[421275484,1777323044859,-500.0,0.00019178,2]
[421275485,1777323044869,-500.0,0.00019178,2]
[421275486,1777323044879,-500.0,0.00019178,2]
[421275487,1777323044889,-500.0,0.00019178,2]
[421275488,1777323044899,-501.49493104,0.00019178,2]
[421275489,1777323044909,-500.81807541,0.00019178,2]
[421275490,1777323044919,-515.6,0.00019178,2]
[421275491,1777323044930,-576.59329647,0.00019178,2]
[421275492,1777323044940,-500.4041249,0.00019178,2]
[421275493,1777323044950,-501.74344768,0.00019178,2]
[421275494,1777323044960,-536.52,0.00019178,2]
[421275495,1777323044970,-501.06943476,0.00019178,2]
[421275496,1777323044980,-579.55,0.00019178,2]
[421275497,1777323044990,-500.55924416,0.00019178,2]
[421275498,1777323045000,-500.47904037,0.00019178,2]
[421275499,1777323045010,-501.36591345,0.00019178,2]
[421275500,1777323045020,-500.0,0.00019178,2]
[421275501,1777323045030,-501.12174676,0.00019178,2]
[421275502,1777323045040,-605.79,0.00019178,2]
[421275503,1777323045054,-594.39778656,0.00019178,2]
[421275504,1777323045064,-506.82780255,0.00019178,2]
[421275505,1777323045074,-501.35993072,0.00019178,2]
[421275506,1777323045084,-415.22065305,0.00019178,2]
[421275507,1777323045094,-500.63305566,0.00019178,2]
[421275508,1777323045104,-501.60598083,0.00019178,2]
[421275509,1777323045114,-500.0,0.00019178,2]
[421275510,1777323045124,-516.05870583,0.00019178,2]
[421275511,1777323045134,-500.0,0.00019178,2]
[421275512,1777323045144,-508.79536234,0.00019178,2]
[421275513,1777323045154,-501.94956415,0.00019178,2]
[421275514,1777323045164,-500.68238816,0.00019178,2]
[421275515,1777323045175,-510.80757852,0.00019178,2]
[421275516,1777323045184,-501.25456355,0.00019178,2]
[421275517,1777323045194,-500.59002865,0.00019178,2]
[421275518,1777323045204,-501.82494113,0.00019178,2]
[421275519,1777323045214,-500.0,0.00019178,2]
[421275520,1777323045224,-592.64685957,0.00019178,2]
[421275521,1777323045234,-505.3122634,0.00019178,2]
[421275522,1777323045243,-500.54806604,0.00019178,2]
[421275523,1777323045253,-500.0,0.00019178,2]
[421275524,1777323045263,-518.06955938,0.00019178,2]
[421275525,1777323045272,-501.47801908,0.00019178,2]
[421275526,1777323045282,-500.0,0.00019178,2]
[421275527,1777323045291,-506.25237588,0.00019178,2]
[421275528,1777323045300,-500.0,0.00019178,2]
[421275529,1777323045310,-500.59686068,0.00019178,2]
[421275530,1777323045320,-500.0,0.00019178,2]
[421275531,1777323045329,-500.60737868,0.00019178,2]
[421275532,1777323045339,-574.84,0.00019178,2]
[421275533,1777323045350,-501.49577717,0.00019178,2]
[421275534,1777323045360,-500.97911324,0.00019178,2]
[421275535,1777323045370,-501.24798001,0.00019178,2]
[421275536,1777323045379,-500.68466471,0.00019178,2]
[421275537,1777323045389,-500.0,0.00019178,2]
[421275538,1777323045400,-500.96814977,0.00019178,2]
[421275539,1777323045410,-501.41159656,0.00019178,2]
[421275540,1777323045420,-279.40791031,0.00019178,2]
[421275541,1777323045430,-501.60999174,0.00019178,2]
[421275542,1777323045440,-501.19310347,0.00019178,2]
[421275543,1777323045450,-500.83189753,0.00019178,2]
[421275544,1777323045460,-500.60870906,0.00019178,2]
[421275545,1777323045470,-596.82,0.00019178,2]
[421275546,1777323045479,-642.21862439,0.00019178,2]
[421275547,1777323045489,-546.16,0.00019178,2]
[421275548,1777323045499,-617.979226,0.00019178,2]
[421275549,1777323045509,-496.54004162,0.00019178,2]
[421275550,1777323045519,-501.5245039,0.00019178,2]
[421275551,1777323045529,-501.50702636,0.00019178,2]
[421275552,1777323045539,-500.0,0.00019178,2]
[421275553,1777323045548,-501.13717329,0.00019178,2]
[421275554,1777323045558,-500.0,0.00019178,2]
[421275555,1777323045567,-500.82312259,0.00019178,2]
[421275556,1777323045576,-504.59681662,0.00019178,2]
[421275557,1777323045587,-547.99,0.00019178,2]
[421275558,1777323045597,-500.58876542,0.00019178,2]
[421275559,1777323045607,-502.78306046,0.00019178,2]
[421275560,1777323045616,-500.76808748,0.00019178,2]
[421275561,1777323045626,-500.0,0.00019178,2]
[421275562,1777323045637,-500.0,0.00019178,2]
[421275563,1777323045646,-611.84698771,0.00019178,2]
[421275564,1777323045656,-500.0,0.00019178,2]
[421275565,1777323045666,-500.0,0.00019178,2]
[421275566,1777323045676,-500.36981759,0.00019178,2]
[421275567,1777323045686,-500.0,0.00019178,2]
[421275568,1777323045695,-501.60149244,0.00019178,2]
[421275569,1777323045705,-507.52258332,0.00019178,2]
[421275570,1777323045715,-500.0,0.00019178,2]
[421275571,1777323045725,-500.0,0.00019178,2]
[421275572,1777323045735,-500.0,0.00019178,2]
[421275573,1777323045744,-500.69821682,0.00019178,2]
[421275574,1777323045754,-440.91726339,0.00019178,2]
[421275575,1777323045764,-500.0,0.00019178,2]
[421275576,1777323045773,-500.0,0.00019178,2]
[421275577,1777323045783,-500.4802941,0.00019178,2]
[421275578,1777323045793,-525.31687472,0.00019178,2]
[421275579,1777323045803,-511.98466246,0.00019178,2]
[421275580,1777323045813,-500.0,0.00019178,2]
[421275581,1777323045822,-500.0,0.00019178,2]
[421275582,1777323045832,-499.0,0.00019178,2]
[421275583,1777323045841,-500.0,0.00019178,2]
[421275584,1777323045851,-500.0,0.00019178,2]
[421275585,1777323045862,-500.0,0.00019178,2]
[421275586,1777323045871,-500.77389086,0.00019178,2]
[421275587,1777323045881,-500.0,0.00019178,2]
[421275588,1777323045891,-502.49144056,0.00019178,2]
[421275589,1777323045900,-501.65279747,0.00019178,2]
[421275590,1777323045910,-506.08520024,0.00019178,2]
[421275591,1777323045920,-500.0,0.00019178,2]
[421275592,1777323045930,-500.0,0.00019178,2]
[421275593,1777323045939,-500.0,0.00019178,2]
[421275594,1777323045949,-500.0,0.00019178,2]
[421275595,1777323045959,-500.79255733,0.00019178,2]
[421275596,1777323045968,-291.34377777,0.00019178,2]
[421275597,1777323045978,-500.0,0.00019178,2]
[421275598,1777323045988,-517.046633,0.00019178,2]
[421275599,1777323045997,-500.61193555,0.00019178,2]
[421275600,1777323046007,-500.0,0.00019178,2]
[421275601,1777323046016,-501.19346797,0.00019178,2]
[421275602,1777323046027,-527.41826487,0.00019178,2]
[421275603,1777323046036,-500.0,0.00019178,2]
[421275604,1777323046046,-500.36063995,0.00019178,2]
[421275605,1777323046055,-501.75906961,0.00019178,2]
[421275606,1777323046065,-500.0,0.00019178,2]
[421275607,1777323046075,-500.58733714,0.00019178,2]
[421275608,1777323046085,-500.66176266,0.00019178,2]
[421275609,1777323046094,-199.45356256,0.00019178,2]
[421275610,1777323046104,-500.34602502,0.00019178,2]
[421275611,1777323046114,-552.23,0.00019178,2]
[421275612,1777323046124,-501.26819102,0.00019178,2]
[421275613,1777323046134,-510.97834503,0.00019178,2]
[421275614,1777323046145,-502.41844982,0.00019178,2]
[421275616,1777323046155,-502.03629384,0.00019178,2]
[421275617,1777323046165,-500.0,0.00019178,2]
[421275618,1777323046174,-500.0,0.00019178,2]
[421275619,1777323046184,-500.0,0.00019178,2]
[421275620,1777323046194,-500.52916636,0.00019178,2]
[421275621,1777323046204,-500.0,0.00019178,2]
[421275622,1777323046213,-501.32273702,0.00019178,2]
[421275623,1777323046223,-500.79939604,0.00019178,2]
[421275624,1777323046233,-501.05932113,0.00019178,2]
[421275625,1777323046242,-474.44889496,0.00019178,2]
[421275626,1777323046252,-500.24458119,0.00019178,2]
[421275627,1777323046261,-500.53220363,0.00019178,2]
[421275628,1777323046271,-632.45287473,0.00019178,2]
[421275629,1777323046281,-500.0,0.00019178,2]
[421275630,1777323046290,-500.26615297,0.00019178,2]
[421275631,1777323046300,-501.69861062,0.00019178,2]
[421275632,1777323046310,-501.68542478,0.00019178,2]
[421275633,1777323046319,-500.89919522,0.00019178,2]
[421275634,1777323046329,-501.64139444,0.00019178,2]
[421275635,1777323046339,-501.25111805,0.00019178,2]
[421275636,1777323046349,-500.0,0.00019178,2]
[421275637,1777323046358,-500.0,0.00019178,2]
[421275638,1777323046368,-500.70613274,0.00019178,2]
[421275639,1777323046378,-500.0,0.00019178,2]
[421275640,1777323046388,-500.69166101,0.00019178,2]
[421275641,1777323046398,-500.0,0.00019178,2]
[421275642,1777323046408,-500.0,0.00019178,2]
[421275643,1777323046419,-502.0561126,0.00019178,2]
[421275644,1777323046429,-500.0,0.00019178,2]
[421275645,1777323046439,-500.0,0.00019178,2]
[421275646,1777323046449,-501.29565185,0.00019178,2]
[421275647,1777323046459,-500.0,0.00019178,2]
[421275648,1777323046469,-500.5072287,0.00019178,2]
[421275649,1777323046479,-500.53513414,0.00019178,2]
[421275650,1777323046489,-500.0,0.00019178,2]
[421275651,1777323046501,-500.8028824,0.00019178,2]
[421275652,1777323046511,-500.0,0.00019178,2]
[421275653,1777323046521,-500.0,0.00019178,2]
[421275654,1777323046531,-500.28841877,0.00019178,2]
[421275655,1777323046541,-500.0,0.00019178,2]
[421275656,1777323046551,-502.0202641,0.00019178,2]
[421275657,1777323046561,-593.58660619,0.00019178,2]
[421275658,1777323046571,-541.17,0.00019178,2]
[421275659,1777323046581,-633.09997774,0.00019178,2]
[421275660,1777323046591,-500.0,0.00019178,2]
[421275661,1777323046601,-500.65821665,0.00019178,2]
[421275662,1777323046611,-299.20237514,0.00019178,2]
[421275663,1777323046622,-500.91037172,0.00019178,2]
[421275664,1777323046632,-500.0,0.00019178,2]
[421275665,1777323046643,-646.51980617,0.00019178,2]
[421275666,1777323046654,-500.0,0.00019178,2]
[421275667,1777323046664,-500.28040934,0.00019178,2]
[421275669,1777323046674,-500.0,0.00019178,2]
[421275670,1777323046684,-500.0,0.00019178,2]
[421275672,1777323046694,-501.49071746,0.00019178,2]
[421275673,1777323046704,-501.07114751,0.00019178,2]
[421275674,1777323046715,-500.0,0.00019178,2]
[421275675,1777323046725,-500.0,0.00019178,2]
[421275676,1777323046735,-500.0,0.00019178,2]
[421275677,1777323046745,-568.14554505,0.00019178,2]
[421275678,1777323046754,-501.61546843,0.00019178,2]
[421275679,1777323046764,-500.28187387,0.00019178,2]
[421275680,1777323046774,-504.63499273,0.00019178,2]
[421275681,1777323046784,-500.43681461,0.00019178,2]
[421275682,1777323046794,-500.0,0.00019178,2]
[421275683,1777323046804,-500.0,0.00019178,2]
[421275684,1777323046813,-502.22794674,0.00019178,2]
[421275685,1777323046823,-500.0,0.00019178,2]
[421275686,1777323046832,-501.03734345,0.00019178,2]
[421275687,1777323046842,-399.09400634,0.00019178,2]
[421275688,1777323046852,-500.0,0.00019178,2]
[421275689,1777323046861,-500.0,0.00019178,2]
[421275690,1777323046870,-501.27416947,0.00019178,2]
[421275691,1777323046879,-503.93,0.00019178,2]
[421275692,1777323046889,-500.53964656,0.00019178,2]
[421275693,1777323046898,-500.0,0.00019178,2]
[421275694,1777323046907,-504.47374047,0.00019178,2]
[421275695,1777323046916,-500.85837054,0.00019178,2]
[421275696,1777323046926,-500.0,0.00019178,2]
[421275697,1777323047092,-500.0,0.00019178,2]
[421275698,1777323047103,-507.02316466,0.00019178,2]
[421275699,1777323047113,-500.0,0.00019178,2]
[421275700,1777323047123,-589.2758382,0.00019178,2]
[421275701,1777323047133,-513.70061001,0.00019178,2]
[421275702,1777323047143,-500.0,0.00019178,2]
[421275703,1777323047152,-500.0,0.00019178,2]
[421275704,1777323047162,-500.80882854,0.00019178,2]
[421275705,1777323047172,-500.9146041,0.00019178,2]
[421275706,1777323047182,-500.0,0.00019178,2]
[421275707,1777323047191,-500.94552041,0.00019178,2]
[421275708,1777323047201,-500.0,0.00019178,2]
[421275709,1777323047211,-500.0,0.00019178,2]
[421275710,1777323047221,-500.0,0.00019178,2]
[421275711,1777323047231,-500.80556605,0.00019178,2]
[421275712,1777323047241,-535.11917587,0.00019178,2]
[421275713,1777323047251,-501.64982416,0.00019178,2]
[421275714,1777323047261,-500.0,0.00019178,2]
[421275715,1777323047271,-500.0,0.00019178,2]
[421275716,1777323047280,-500.87469267,0.00019178,2]
[421275717,1777323047290,-500.0,0.00019178,2]
[421275718,1777323047300,-501.41269744,0.00019178,2]
[421275719,1777323047311,-500.0000005,0.00019178,2]
[421275720,1777323047321,-502.91316235,0.00019178,2]
[421275721,1777323047330,-500.0,0.00019178,2]
[421275722,1777323047341,-268.38633208,0.00019178,2]
[421275723,1777323047351,-500.0,0.00019178,2]
[421275724,1777323047361,-500.44196889,0.00019178,2]
[421275725,1777323047372,-500.0,0.00019178,2]
[421275726,1777323047382,-556.71809939,0.00019178,2]
[421275727,1777323047392,-500.0,0.00019178,2]
[421275728,1777323047402,-500.0,0.00019178,2]
[421275729,1777323047413,-500.0,0.00019178,2]
[421275730,1777323047423,-500.85382623,0.00019178,2]
[421275731,1777323047434,-500.0,0.00019178,2]
[421275732,1777323047444,-500.0,0.00019178,2]
[421275733,1777323047454,-500.0,0.00019178,2]
[421275734,1777323047465,-500.26352809,0.00019178,2]
[421275735,1777323047475,-500.0,0.00019178,2]
[421275736,1777323047486,-500.0,0.00019178,2]
[421275737,1777323047496,-500.0,0.00019178,2]
[421275738,1777323047507,-500.0,0.00019178,2]
[421275739,1777323047517,-500.0,0.00019178,2]
[421275740,1777323047528,-500.0,0.00019178,2]
[421275741,1777323047539,-500.0,0.00019178,2]
[421275742,1777323047550,-518.55649749,0.00019178,2]